[Event "Lliga Catalana DH 2023"]
[Site "Catalonia"]
[Date "2023.04.15"]
[Round "11.6"]
[White "Fernandez Aguado, Enrique"]
[Black "Masague Artero, Guerau"]
[Result "1-0"]
[ECO "D56"]
[WhiteElo "2281"]
[BlackElo "2302"]
[Annotator "TA"]
[PlyCount "93"]
[EventDate "2023.01.24"]
[EventType "team-tourn"]
[EventCountry "ESP"]
[SourceTitle "playchess.com"]
[Source "ChessBase"]
[SourceQuality "1"]
[TimeControl "40/5400+30:1800+30"]

{[%evp 20,93,19,19,25,19,19,20,22,25,27,27,37,36,42,39,36,40,52,36,32,19,47,41,54,34,61,61,64,32,36,25,29,0,0,0,23,17,11,0,0,0,0,0,0,0,0,0,0,0,15,16,29,10,2,16,130,85,197,135,153,145,255,259,240,224,270,276,1967,1916,1605,1474,6403,6395,29985,29986]} 1. d4 {[%emt 0:00:31]} Nf6 {[%emt 0:00:17]} 2. c4 {[%emt 0:00:28]} e6 {[%emt 0:00:22]} 3. Nc3 {[%emt 0:00:56]} d5 {[%emt 0:01:01]} 4. Bg5 {[%emt 0:04:01]} Be7 {[%emt 0:01:28]} 5. e3 {[%emt 0:00:16]} O-O {[%emt 0:01:22]} 6. Nf3 {[%emt 0:02:40]} h6 {[%emt 0:01:12]} 7. Bh4 {[%emt 0:02:52]} Ne4 {[%emt 0:01:08]} 8. Bxe7 {[%emt 0:01:56]} Qxe7 {[%emt 0:00:48]} 9. Rc1 {[%emt 0:05:47]} Nxc3 {[%emt 0:13:09]} 10. Rxc3 {[%emt 0:01:12]} c6 {[%emt 0:02:17]} 11. Qc2 {[%emt 0:02:10]} Nd7 {[%emt 0:01:42] D56: Queen's Gambit Declined: Lasker Defence.} 12. cxd5 {[%emt 0:00:00]} exd5 {[%emt 0:05:19]} 13. Bd3 {[%emt 0:03:09]} Nf6 {[%emt 0:04:44] The position is equal.} 14. O-O {[%emt 0:00:49]} Ne4 {[%emt 0:00:00]} 15. Bxe4 {[%emt 0:00:13]} dxe4 {[%emt 0:00:00]} 16. Nd2 {[%emt 0:02:48]} Re8 {[%emt 0:00:00]} 17. Rc5 {[%emt 0:00:55]} f6 {[%emt 0:13:34] Prevents Re5} 18. a4 {[%emt 0:05:13][%cal Ba2a4,Ba4a5][%mdl 32] [#]} Bd7 $146 {[%emt 0:07:27] Black is weak on the dark squares} ({Predecessor:} 18... Bg4 19. Rc1 Rad8 20. a5 a6 21. Nc4 Qf7 22. Nb6 Qg6 23. f4 Be6 24. Qf2 f5 {0-1 Batsiashvili,N (2413)-Hammer,J (2601) Oslo op 2011 (2)}) 19. a5 {[%emt 0:06:40]} Rad8 {[%emt 0:02:34]} 20. Rc1 {[%emt 0:02:18]} Kh8 {[%emt 0:04:28]} 21. h3 {[%emt 0:07:32]} Qe6 {[%emt 0:05:11]} 22. Nf1 {[%emt 0:05:54][%cal Bd2f1,Bf1g3,Bg3e2,Be2c3][%mdl 32]} a6 {[%emt 0:01:06]} 23. Ng3 {[%emt 0:01:56]} Bc8 {[%emt 0:01:53]} 24. Qc3 {[%emt 0:01:05]} Qf7 {[%emt 0:01:28]} 25. Qc4 {[%emt 0:05:19]} Be6 {[%emt 0:00:51]} 26. Qb4 {[%emt 0:00:17]} Bd5 {[%emt 0:03:43]} 27. Ne2 {[%emt 0:00:14]} g5 {[%emt 0:03:14]} 28. Nc3 {[%emt 0:06:29]} Bb3 {[%emt 0:01:15]} 29. Qb6 {[%emt 0:04:30][%cal Oc3e4]} Rd7 {[%emt 0:04:28]} 30. Kf1 {[%emt 0:04:01]} Ree7 {[%emt 0:03:07]} 31. Kg1 {[%emt 0:01:13]} Kh7 {[%emt 0:00:31]} 32. Qa7 {[%emt 0:01:17]} f5 {[%emt 0:03:30]} 33. Qb8 {[%emt 0:00:42][%cal Oh3h4]} Re8 {[%emt 0:01:23]} 34. Qh2 {[%emt 0:03:54]} f4 {[%emt 0:01:39]} 35. h4 {[%emt 0:01:59]} g4 {[%emt 0:07:05][%cal Og4g3] [#] Strongly threatening ...g3!} 36. exf4 {[%emt 0:03:58] Black must now prevent Re5.} Rxd4 {[%emt 0:00:00] And now ...e3 would win.} 37. Qg3 {[%emt 0:05:18]} Rd2 {[%emt 0:00:31]} (37... Rd3 $1 $11 {keeps the balance.} 38. Qxg4 e3 39. fxe3 Rexe3) 38. Re1 {[%emt 0:02:02]} (38. Qxg4 e3 39. fxe3 Rg8 $15) 38... Bc2 (38... Bd5 $16) 39. h5 {[%emt 0:04:04]} (39. Qxg4 $6 Bd3 $16) ({Better is} 39. Qe3 $18 Rd7 40. Re5 (40. Qe2 Bd3 $16)) 39... Bd3 $16 {[%emt 0:01:20]} 40. Qxg4 {[%emt 0:00:31]} Rg8 {[%emt 0:04:26]} (40... Rxb2 $16 41. Re3 Rd2) 41. Qh4 $18 {[%emt 0:28:12] aiming for Re5.} Qg7 {[%emt 0:30:17][%csl Gg8][%cal Rg7g2] [#]} 42. Qh3 {[%emt 0:00:35]} Rxb2 {[%emt 0:01:01]} (42... Qd4 $2 43. Qf5+ Kh8 44. Qe5+ (44. Nxe4 $2 {loses.} Bxe4 45. Qe5+ Qxe5 $19) 44... Qxe5 45. Rxe5 (45. fxe5 Rf8 $11)) 43. Nxe4 {[%emt 0:01:13]} Rb1 $2 {[%emt 0:01:08]} (43... Bxe4 44. Rxe4 Rb1+ 45. Kh2 Qa1 46. Qf5+ Kh8 47. Qe5+ Qxe5 48. Rcxe5 (48. fxe5 Rb2 $16) 48... Rb5) 44. Nf6+ {[%emt 0:00:58]} (44. Qxd3 $2 Qxg2#) 44... Kh8 {[%emt 0:00:00]} 45. Rxb1 {[%emt 0:00:39]} ({Inferior is} 45. Nxg8 Rxe1+ 46. Kh2 Qd4 $11) 45... Bxb1 {[%emt 0:00:17]} 46. Nxg8 {[%emt 0:00:44]} Kxg8 {[%emt 0:00:06]} 47. Qb3+ {[%emt 0:00:30] Weighted Error Value: White=0.09 (flawless) /Black=0.38} 1-0

[Event "Lliga Catalana DH 2023"]
[Site "Catalonia"]
[Date "2023.04.15"]
[Round "11.6"]
[White "Ayas Fernandez, Antonio"]
[Black "Escandell Mari, Juan Carlos"]
[Result "1/2-1/2"]
[ECO "C91"]
[WhiteElo "2193"]
[BlackElo "2159"]
[Annotator "TA"]
[PlyCount "44"]
[EventDate "2023.01.24"]
[EventType "team-tourn"]
[EventCountry "ESP"]
[SourceTitle "playchess.com"]
[Source "ChessBase"]
[SourceQuality "1"]
[TimeControl "40/5400+30:1800+30"]

{[%evp 20,44,23,18,21,8,16,0,0,21,22,22,29,25,25,24,28,37,28,12,14,0,46,0,16,16,18]} 1. e4 e5 2. Nf3 Nc6 3. Bb5 {[%cal Bf1b5,Bb5a4,Ba4b3][%mdl 32]} a6 4. Ba4 Nf6 5. O-O Be7 6. Re1 b5 7. Bb3 d6 8. c3 O-O 9. d4 Bg4 10. Be3 Bh5 11. Nbd2 d5 {C91: Closed Ruy Lopez: 7...d6 8 c3 0-0 9 d4.} 12. exd5 ({Reject} 12. dxe5 Nxe5 13. exd5 Nd3 $15) 12... Nxd5 13. Ne4 exd4 14. Bxd4 Nxd4 15. Qxd4 Nf6 16. Ne5 {[#] And now Nc6 would win.} Qxd4 17. cxd4 Nxe4 18. Rxe4 {g4 is the strong threat.} Bd6 {[#]} 19. f4 $146 ({Predecessor:} 19. Rc1 Rac8 20. Bd5 Rcd8 21. f3 Bg6 22. Nxg6 hxg6 23. g3 Bxg3 24. hxg3 Rxd5 25. Rxc7 Rfd8 26. Ree7 Rf5 {½-½ Cole,S (1947)-Norman,N (2198) GB/C2017/ResE}) 19... Bg6 20. Re2 Bh5 (20... Bf5 $11) 21. Re4 Bg6 22. Nxg6 hxg6 {Weighted Error Value: White=0.12 (very precise) /Black=0.05 (flawless)} 1/2-1/2

[Event "Lliga Catalana DH 2023"]
[Site "Catalonia"]
[Date "2023.04.15"]
[Round "11.7"]
[White "Martinez Fernandez, Adrian"]
[Black "Perpinya Rofes, Lluis Maria"]
[Result "1-0"]
[ECO "B56"]
[WhiteElo "2374"]
[BlackElo "2261"]
[Annotator "TA"]
[PlyCount "49"]
[EventDate "2023.01.24"]
[EventType "team-tourn"]
[EventCountry "ESP"]
[SourceTitle "playchess.com"]
[Source "ChessBase"]
[SourceQuality "1"]
[TimeControl "40/5400+30:1800+30"]

{[%evp 12,49,49,63,51,61,65,48,50,33,52,51,48,66,60,61,67,77,74,74,77,74,256,254,261,249,300,298,555,549,596,600,673,681,690,682,729,717,1240,1231]} 1. e4 {[%emt 0:32:29]} c5 {[%emt 0:00:06]} 2. Nc3 {[%emt 0:00:09]} Nc6 {[%emt 0:00:17]} 3. Nge2 {[%emt 0:00:10]} d6 {[%emt 0:01:49]} 4. d4 {[%emt 0:00:45]} cxd4 {[%emt 0:00:10]} 5. Nxd4 {[%emt 0:00:06]} Nf6 {[%emt 0:01:48]} 6. f3 {[%emt 0:00:10]} Nxd4 {[%emt 0:03:19]} 7. Qxd4 {[%emt 0:00:07]} g6 {[%emt 0:00:03] B56: Classical Sicilian: Unusual Lines.} 8. Bb5+ {[%emt 0:00:11]} Bd7 {[%emt 0:00:17]} 9. Bxd7+ {[%emt 0:00:07]} Qxd7 {[%emt 0:00:14] White is slightly better.} 10. Be3 {[%emt 0:00:06][%cal Bc1e3,Be3a7,Ba7d4,Bd4e5][%mdl 32]} Bg7 {[%emt 0:03:45]} 11. O-O-O {[%emt 0:00:08]} O-O {[%emt 0:03:44][%cal Of6g4]} 12. e5 $36 {[%emt 0:00:06][%mdl 2048] White has good play.} Ne8 {[%emt 0:00:33]} 13. Qe4 {[%emt 0:00:06]} Rc8 {[%emt 0:15:13] [#]} 14. Bxa7 $146 {[%emt 0:00:15] White is much more active. The black rooks are badly placed.} ({Predecessor:} 14. Rhe1 Rxc3 15. bxc3 Qb5 16. Qb4 Qxe5 17. Bxa7 Qxh2 18. Rxe7 Qxg2 19. Rxb7 Qxf3 20. Rd3 {½-½ Nasuta,G (2500)-Stocek,J (2548) Suwalki Warakomska Memorial 6th 2022 (5)}) 14... b5 {[%emt 0:05:11]} 15. Bd4 {[%emt 0:18:37] Black must now prevent Nd5.} Rc4 {[%emt 0:14:08]} 16. Qe3 {[%emt 0:22:04]} b4 $2 {[%emt 0:23:45] [#] A mistake that costs the game.} (16... d5 $16) 17. Nd5 $18 {[%emt 0:06:32] Threatens to win with exd6.} dxe5 {[%emt 0:19:57]} 18. Bxe5 {[%emt 0:04:34]} Qe6 {[%emt 0:00:09]} 19. Rhe1 {[%emt 0:01:45]} f6 $2 {[%emt 0:02:14]} (19... Nf6) 20. Qb3 {[%emt 0:03:44][%csl LRb4,LRc4] White is clearly winning.} fxe5 {[%emt 0:00:50]} 21. Qxc4 {[%emt 0:00:09]} Kh8 {[%emt 0:00:12]} 22. Qxb4 {[%emt 0:01:25]} Nd6 {[%emt 0:00:30]} 23. Kb1 {[%emt 0:00:50]} Ra8 {[%emt 0:02:04]} 24. a3 {[%emt 0:01:06]} Nf5 {[%emt 0:00:59]} 25. Nc7 {[%emt 0:00:37] Weighted Error Value: White=0.02 (flawless) /Black=0.52} 1-0

[Event "Lliga Catalana DH 2023"]
[Site "Catalonia"]
[Date "2023.04.15"]
[Round "11.7"]
[White "Valencia Jimenez, Jose"]
[Black "Pros Heras, Jordi"]
[Result "1/2-1/2"]
[ECO "A06"]
[WhiteElo "2023"]
[BlackElo "2054"]
[Annotator "TA"]
[PlyCount "91"]
[EventDate "2023.01.24"]
[EventType "team-tourn"]
[EventCountry "ESP"]
[SourceTitle "playchess.com"]
[Source "ChessBase"]
[SourceQuality "1"]
[TimeControl "40/5400+30:1800+30"]

{[%evp 9,91,6,14,12,17,16,17,18,21,0,-7,-13,-9,-3,6,4,7,-2,2,-35,35,18,56,60,54,0,0,0,0,-97,-90,-97,-87,-102,-97,-398,-325,-366,-362,-412,-251,-250,-208,-318,-275,-282,-281,-278,-276,-268,-267,-277,-279,-258,-236,-443,-431,-431,-408,-408,-399,-631,-631,-670,-564,-720,-504,-491,0,0,0,0,0,0,0,0,0,0,2007,1985,1985,1985,29983,29984]} 1. Nf3 d5 2. b3 Bf5 3. Bb2 e6 4. e3 h6 5. d4 Nf6 6. Bd3 {A06: Réti Opening: 1 Nf3 d5.} Bxd3 7. Qxd3 Nbd7 8. Nbd2 {The position is equal.} c6 9. Ne5 Nxe5 10. dxe5 Nd7 11. O-O {[#]} Qc7 $146 ({Predecessor:} 11... Be7 12. f4 O-O 13. Rf3 f5 14. Kh1 g5 15. h3 Nc5 16. Qe2 g4 17. hxg4 fxg4 {½-½ Weiss,O-Fricker,T (2155) Westfalen-ch U20 1998}) 12. f4 O-O-O 13. a3 Kb8 14. b4 f6 (14... c5 $15) 15. Nf3 c5 16. c4 Nb6 {[%cal Bd7b6,Bb6d5,Bd5f4,Bf4d3][%mdl 32]} 17. cxd5 ({Better is} 17. exf6 $14 Nxc4 18. fxg7 Bxg7 19. Bxg7 Qxg7 20. bxc5) 17... Nxd5 $11 18. Rac1 Nxf4 {[%mdl 64] [#] Discovered Attack} 19. Qc4 (19. Qc2 $11 {remains equal.} Nd5 20. Qg6) 19... Nd3 $17 20. Rc2 Nxb2 (20... Nxe5 $6 21. Nxe5 fxe5 22. h3 $11 (22. bxc5 Be7 $11) (22. Qxe6 Bd6 $11)) (20... fxe5 $6 21. Bc3 Rd7 22. Rd1 $11) 21. Rxb2 cxb4 22. Qxe6 {[%mdl 8192]} (22. Qxc7+ $17 Kxc7 23. axb4) 22... bxa3 $19 23. Rb3 Bc5 {Wards off Nd4} 24. Rfb1 Bb6 25. Rxa3 fxe5 26. Qb3 (26. Qxe5 $142 Qxe5 27. Nxe5) 26... Rhe8 27. Qb2 Rc8 28. Rb3 Re6 29. h3 Qd6 30. Kh1 Qd5 31. Rb5 Qe4 32. Nxe5 $2 (32. Qd2) 32... Rc2 {[%csl Gc2][%cal Re4g2]} ({Worse is} 32... Qxe3 33. Nd7+ Ka8 34. Rb3 $15) (32... Bxe3 $2 {leads to mate.} 33. Rxb7+ Ka8 34. Rb8+ Rxb8 35. Qxb8#) 33. Nd7+ Kc7 {[%csl Gc2][%cal Re4g2]} 34. Qxg7 Re7 (34... Bxe3 {gets mated.} 35. Ne5+) 35. Qg3+ (35. Nf6 $142 Rxg7 36. Nxe4 Rgxg2 37. R5b3) 35... Kxd7 36. Rd1+ Kc6 37. Rbd5 {[%csl Gd1,Gd5][%cal Rg3d6]} Re6 {Wards off Qd6+} (37... Qxe3 $2 38. Qd6#) 38. Rd6+ {[#]} Rxd6 $2 (38... Kb5 $1 $19 {Strongly threatening ...Rxd6.} 39. Rb1+ Kc5 40. Rxe6 Qxe6) 39. Qxd6+ $11 Kb5 {[%csl Gc2][%cal Re4g2]} 40. Rb1+ Ka4 {[%csl Gc2][%cal Re4g2]} 41. Ra1+ $1 Kb5 $1 {[%csl Gc2][%cal Re4g2]} 42. Rb1+ Ka4 {[%csl Gc2][%cal Re4g2]} 43. Ra1+ $1 Kb3 $2 {[%mdl 8192]} (43... Kb5 $11 44. Rb1+) 44. Qa3+ $18 Kc4 45. Qa4+ Kd5 46. Rd1+ {[%mdl 32768] White used his chance.   Weighted Error Value: White=0.42/Black=0.40. An unexpected result.} 1/2-1/2

[Event "Lliga Catalana DH 2023"]
[Site "Catalonia"]
[Date "2023.04.15"]
[Round "11.8"]
[White "Bernado Lopez, Roger"]
[Black "Alcala Gonzalez, Cesar"]
[Result "0-1"]
[ECO "B12"]
[WhiteElo "2167"]
[BlackElo "2262"]
[Annotator "TA"]
[PlyCount "98"]
[EventDate "2023.01.24"]
[EventType "team-tourn"]
[EventCountry "ESP"]
[SourceTitle "playchess.com"]
[Source "ChessBase"]
[SourceQuality "1"]
[TimeControl "40/5400+30:1800+30"]

{[%evp 9,98,0,1,6,0,0,0,0,10,0,57,36,47,36,29,13,5,0,0,-9,13,-7,-2,-22,-21,-4,47,-34,-56,-64,0,0,0,0,0,0,0,0,0,0,0,-35,22,21,68,0,0,0,0,-13,-6,-35,-8,-5,0,-149,-165,-165,-153,-228,-175,-224,-223,-276,-264,-501,-509,-550,-509,-498,-506,-471,-406,-519,-511,-895,-886,-862,-881,-966,-969,-942,-929,-841,-822,-5097,-5075,-11966,-8820,-12817,-6395]} 1. e4 {[%emt 0:00:06]} c6 {[%emt 0:00:19]} 2. d4 {[%emt 0:00:17]} d5 {[%emt 0:00:21]} 3. e5 {[%emt 0:00:18]} c5 {[%emt 0:00:24]} 4. dxc5 {[%emt 0:00:23]} e6 {[%emt 0:00:00]} 5. a3 {[%emt 0:00:10]} Bxc5 {[%emt 0:00:00]} 6. b4 {[%emt 0:00:26] B12: Caro-Kann: Advance Variation.} Be7 {[%emt 0:00:23]} 7. Nf3 {[%emt 0:04:00]} a5 {[%emt 0:01:29]} 8. b5 {[%emt 0:01:40] The position is equal.} ({But not} 8. Bb5+ Bd7 9. Bxd7+ Nxd7 $17) 8... Nd7 {[%emt 0:00:27]} 9. c4 {[%emt 0:12:15]} Nb6 {[%emt 0:24:33] [#]} ({Black should play} 9... Qc7 $11) 10. Be3 $146 {[%emt 0:02:58]} ({Predecessor:} 10. cxd5 Nxd5 11. Bc4 Nb6 12. Bd3 g5 13. h3 Nd5 14. Be4 h5 15. Ra2 Nh6 16. Rd2 {1-0 Najer,E (2654)-Shengelia,D (2519) CZE-chT 2122 2021 (11.1)}) 10... dxc4 {[%emt 0:06:14]} 11. Qxd8+ {[%emt 0:07:23]} Bxd8 {[%emt 0:00:01]} 12. Bxb6 {[%emt 0:15:49]} (12. Nbd2 {simplifies} Ne7 13. Bxb6 Bxb6 14. Nxc4 Nd5 15. Nxb6 Nxb6 16. Be2) 12... Bxb6 {[%emt 0:00:02]} 13. Nbd2 {[%emt 0:00:57]} c3 {[%emt 0:19:29]} 14. Ne4 {[%emt 0:00:32]} f6 {[%emt 0:00:59]} (14... Ne7 {simplifies} 15. Nxc3 O-O 16. Na4 Ba7) 15. Rc1 {[%emt 0:18:42]} (15. Nxc3 {simplifies} Bd7 16. Bd3 fxe5 17. Rc1) 15... fxe5 {[%emt 0:05:43]} 16. Nxe5 {[%emt 0:02:54]} Nf6 {[%emt 0:05:01]} 17. Nxc3 {[%emt 0:05:02]} O-O {[%emt 0:02:00]} ({Black should try} 17... Bd4 $11 18. f4 O-O) 18. Nc4 {[%emt 0:04:25]} (18. Na4 $14 Bd4 19. Nf3) 18... Bd4 $15 {[%emt 0:12:07]} 19. Be2 Nd5 {[%emt 0:08:56]} ({Better is} 19... e5 $15 20. O-O Be6) 20. Ne4 $11 {[%emt 0:00:15]} Nf4 {[%emt 0:02:04]} 21. g3 {[%emt 0:00:27]} Nxe2 {[%emt 0:00:00]} 22. Kxe2 {[%emt 0:06:52]} e5 {[%emt 0:02:11] Strongly threatening ...Bg4+.} 23. f3 {[%emt 0:01:02] Against Bg4} Be6 {[%emt 0:02:34]} 24. Rhd1 {[%emt 0:02:14]} a4 {[%emt 0:06:10]} 25. Ng5 {[%emt 0:06:00]} Bd7 {[%emt 0:01:19]} (25... Bd5 $15 26. Nxe5 Bxe5 27. Rxd5 Bb2) 26. Nd6 {[%emt 0:01:05]} Ra5 {[%emt 0:01:04]} (26... h6 $11 {deserves consideration.} 27. Rc7 Rad8) 27. Rb1 {[%emt 0:00:32]} (27. Rc7 $1 $14 Bxb5+ 28. Ke1) 27... b6 {[%emt 0:00:00]} 28. Nge4 Be6 {[%emt 0:01:34]} 29. Rdc1 {[%emt 0:01:18]} Ra7 $36 {[%emt 0:02:43][%mdl 2048] Prevents Rc7. Black is pushing.} (29... Ba2 $5) 30. g4 {[%emt 0:04:19]} Ba2 {[%emt 0:00:19] A strong pair of Bishops.} 31. Rb4 {[%emt 0:00:04]} Bb3 {[%emt 0:02:14] White must now prevent ...Bb2.} 32. Rxd4 {[%emt 0:03:27] Black keeps a firm grip on the game.} exd4 $17 {[%emt 0:00:21]} 33. Rc6 {[%emt 0:01:21] [#]} Rb8 {[%emt 0:00:44]} 34. Nc8 {[%emt 0:03:00]} (34. Kd3 $17) 34... Rab7 {[%emt 0:00:29]} 35. Ned6 {[%emt 0:00:00] [#]} (35. Ncd6 $142 Re7 36. Rc1) 35... Bd5 $1 $19 {[%emt 0:00:36]} 36. Nxb7 {[%emt 0:00:11]} (36. Rc1 Rd7) 36... Bxc6 {[%emt 0:00:33][%mdl 4096] Endgame KRB-KNN} 37. Nbd6 {[%emt 0:00:40] [#]} (37. Ne7+ {was the only chance.} Kf8 38. Nxc6 Rxb7 39. f4) 37... Bxb5+ $1 {[%emt 0:00:00][%mdl 576] Deflection} 38. Kd2 {[%emt 0:01:15]} (38. Nxb5 Rxc8) 38... Kf8 {[%emt 0:00:25] Repels Ne7. aiming for ...Bd7.} 39. Nxb5 {[%emt 0:00:06]} Rxc8 {[%emt 0:00:00]} 40. Nxd4 {[%emt 0:00:49] KR-KN} Rc4 {[%emt 0:00:00]} 41. Kd3 {[%emt 0:00:11]} Rc1 {[%emt 0:00:07] Black is clearly winning.} 42. Kd2 {[%emt 0:00:24]} (42. h4 $142 h5 43. gxh5) 42... Ra1 {[%emt 0:00:16]} 43. Nb5 {[%emt 0:00:27]} Ra2+ {[%emt 0:22:56]} 44. Kc3 {[%emt 0:25:15]} Rxh2 {[%emt 0:00:05]} 45. Kb4 {[%emt 0:00:07]} Rf2 {[%emt 0:00:19]} 46. Nd4 {[%emt 0:00:36]} Rd2 {[%emt 0:01:51]} 47. Nb5 {[%emt 0:00:23]} Rd3 {[%emt 0:00:10]} 48. f4 {[%emt 0:01:22]} Rf3 {[%emt 0:00:00]} 49. Nc7 Rxf4+ {[%emt 0:00:25] Weighted Error Value: White=0.79/Black=0.14 (very precise)} 0-1

[Event "Lliga Catalana DH 2023"]
[Site "Catalonia"]
[Date "2023.04.15"]
[Round "11.8"]
[White "Saumoy Poch, Salvador"]
[Black "Ruiz Lupon, Neri"]
[Result "1/2-1/2"]
[ECO "A46"]
[WhiteElo "2002"]
[BlackElo "1922"]
[Annotator "TA"]
[PlyCount "83"]
[EventDate "2023.01.24"]
[EventType "team-tourn"]
[EventCountry "ESP"]
[SourceTitle "playchess.com"]
[Source "ChessBase"]
[SourceQuality "1"]
[TimeControl "40/5400+30:1800+30"]

{[%evp 15,83,0,0,-7,34,3,46,21,15,13,18,7,36,33,32,21,33,32,38,33,35,28,56,33,48,6,8,8,29,12,45,43,60,52,57,50,68,66,64,49,54,52,57,54,56,50,73,57,56,0,64,37,37,37,37,39,39,37,48,39,40,20,26,6,14,9,8,4,43,43]} 1. d4 Nf6 2. c4 a6 3. Nc3 c5 4. dxc5 e6 5. Nf3 Bxc5 6. e3 O-O 7. Be2 Nc6 8. O-O d5 9. cxd5 {A46: 1 d4 Nf6 2 Nf3 e6: Torre, London and Colle Systems.} Nxd5 10. Nxd5 Qxd5 11. Qxd5 exd5 12. Rd1 Rd8 {[#]} 13. Bd2 $146 {[%cal Bc1d2,Bd2c3,Bc3a5,Ba5b4][%mdl 32]} ({Predecessor:} 13. Nd4 Nxd4 14. exd4 Be7 15. Bf4 Be6 16. Rac1 Rac8 17. Bc7 Re8 18. f4 Bd8 19. Bd6 Rxc1 20. Rxc1 {½-½ Calvo Sanchez,J-Gonzalez Merino,A Valladolid CC Regalado-A 23rd 1999 (4)}) 13... Bf5 14. Bc3 Rac8 15. Rd2 h6 16. Rad1 Be6 17. Kf1 b5 18. b3 Ne7 {[%cal Oc5e3]} 19. Ba5 Re8 20. Nd4 Bxd4 21. exd4 Rc6 22. Bb4 Nf5 23. Bc5 Rec8 24. Ra1 Nd6 25. f3 {Prevents Ne4} Rb8 26. Bxd6 Rxd6 27. Rc2 {Against Rc6} Kf8 28. Bd3 Ke7 29. Rc7+ Rd7 30. Rac1 Rbd8 31. R7c6 {White is more active.} Rd6 32. Rc7+ R6d7 33. Kf2 Rxc7 34. Rxc7+ $14 {[%mdl 4096] Endgame KRB-KRB} Rd7 35. Rc6 Rd6 36. Rc5 Kd7 37. Ke3 Rb6 38. h3 Kd6 39. f4 {[%cal Bf3f4,Bf4f5][%mdl 32]} Rb8 40. f5 Bd7 41. Rc1 Rc8 42. Rxc8 {Weighted Error Value: White=0.11 (very precise) /Black=0.11 (very precise)} 1/2-1/2

[Event "Lliga Catalana DH 2023"]
[Site "Catalonia"]
[Date "2023.04.15"]
[Round "11.9"]
[White "Martin Gonzalez, Angel"]
[Black "Jimenez Ruano, Adrian"]
[Result "0-1"]
[ECO "B18"]
[WhiteElo "2216"]
[BlackElo "2235"]
[Annotator "TA"]
[PlyCount "75"]
[EventDate "2023.01.24"]
[EventType "team-tourn"]
[EventCountry "ESP"]
[SourceTitle "playchess.com"]
[Source "ChessBase"]
[SourceQuality "1"]
[TimeControl "40/5400+30:1800+30"]

{[%evp 11,75,7,14,9,44,51,45,25,27,27,39,10,10,16,21,0,0,0,0,0,14,-68,-70,-95,-74,-62,-10,-14,39,7,12,0,0,-86,-69,-134,-127,-165,-162,-162,-155,-220,-232,-229,-222,-204,-181,-320,-320,-289,-292,-341,-321,-336,-329,-312,-244,-264,-255,-256,-247,-261,-249,-247,-239,-414]} 1. e4 {[%emt 0:31:16]} c6 {[%emt 0:13:39]} 2. d4 {[%emt 0:00:37]} d5 {[%emt 0:00:36]} 3. Nc3 {[%emt 0:02:09][%cal Bb1c3,Bc3e4,Be4g3][%mdl 32]} dxe4 {[%emt 0:00:16]} 4. Nxe4 {[%emt 0:00:07]} Bf5 {[%emt 0:01:35]} 5. Ng3 {[%emt 0:00:13]} Bg6 {[%emt 0:00:05]} 6. N1e2 {[%emt 0:00:50]} Nf6 {[%emt 0:04:15][%cal Oe7e5]} 7. h4 {[%emt 0:02:13] is currently scoring better than 7.Nf4. B18: Classical Caro-Kann: 4...Bf5 sidelines.} Nh5 {[%emt 0:04:08]} 8. Nxh5 {[%emt 0:18:25]} Bxh5 {[%emt 0:00:35]} 9. f3 {[%emt 0:00:07] Threatens to win with g4. White is slightly better.} f6 $1 {[%emt 0:01:18] [#]} 10. Be3 $146 {[%emt 0:06:49]} ({Predecessor:} 10. Ng3 Bf7 11. Bf4 e6 12. Ne4 Be7 13. Qd2 O-O 14. O-O-O a5 15. g4 Na6 16. g5 {1-0 Shapar,T (1808)-Markarov,V (1804) Golubitskaya op 2014 (4)}) 10... Qa5+ {[%emt 0:04:48]} 11. Nc3 {[%emt 0:07:08]} Bf7 {[%emt 0:03:45] Wards off Bc4} 12. Bd3 {[%emt 0:03:01]} Nd7 {[%emt 0:04:09]} 13. a3 {[%emt 0:02:49]} e5 {[%emt 0:02:16]} 14. b4 {[%emt 0:07:51]} Qc7 {[%emt 0:00:50]} 15. O-O {[%emt 0:00:48]} Be7 {[%emt 0:01:54]} 16. Be4 {[%emt 0:05:11]} (16. f4 $11) 16... Rd8 $15 {[%emt 0:03:16]} 17. Qe1 {[%emt 0:05:41] [#]} exd4 $1 {[%emt 0:05:41]} 18. Bxd4 {[%emt 0:00:17]} Nb6 {[%emt 0:05:07]} (18... O-O $15) 19. Bc5 {[%emt 0:04:02]} Qe5 {[%emt 0:00:14] Repels Bf5} (19... Bc4 $11) 20. Bxe7 {[%emt 0:00:07]} Qxe7 {[%emt 0:00:59]} 21. Bf5 {[%emt 0:02:16]} Bc4 {[%emt 0:05:52]} 22. Qg3 {[%emt 0:07:56]} Qe3+ $17 {[%emt 0:02:15] Black converts the advantage convincingly.} 23. Kh1 {[%emt 0:02:33] [#]} (23. Kh2 $15 O-O 24. Bd3) 23... O-O $1 $36 {[%emt 0:02:45][%mdl 2048] Black is really pushing.} (23... Qxc3 $2 24. Qxg7 Bxf1 25. Qxh8+ Ke7 26. Qxh7+ Kd6 27. Rxf1 $18) (23... Bxf1 $2 24. Re1 $18) 24. Qe1 {[%emt 0:00:48]} Rfe8 {[%emt 0:01:41][%cal Bf8e8,Be8e3,Be3a3,Ba3a1,Ba1c1][%mdl 32]} 25. Qxe3 {[%emt 0:13:18]} Rxe3 {[%emt 0:00:09]} 26. Rad1 {[%emt 0:02:22]} (26. Bd3 $17) 26... Rxd1 $19 {[%emt 0:02:20]} 27. Nxd1 {[%emt 0:00:06]} Rxa3 {[%emt 0:00:41]} 28. Re1 {[%emt 0:00:01]} Ra1 {[%emt 0:02:24]} 29. Kg1 {[%emt 0:01:39]} (29. Rg1 $142) 29... g6 {[%emt 0:01:40]} 30. Bh3 {[%emt 0:01:34]} Rc1 {[%emt 0:02:40][%cal Of6f5]} 31. f4 {[%emt 0:01:00]} f5 {[%emt 0:01:37] aiming for ...Nd5.} (31... Rxc2 $2 32. Ne3 Re2 33. Be6+ Kf8 34. Rxe2 Bxe2 35. Kf2 $19) 32. g4 {[%emt 0:00:08]} Nd5 {[%emt 0:01:07] White must now prevent ...Nc3.} (32... Rxc2 $2 33. gxf5 Nd5 34. fxg6 hxg6 35. Ne3 Nxe3 36. Rxe3 $19) 33. gxf5 {[%emt 0:01:22]} Nxf4 {[%emt 0:00:01]} 34. Bf1 {[%emt 0:02:08]} Bd5 {[%emt 0:03:21]} ({Not} 34... Rxc2 35. Ne3 Bxf1 36. Nxc2 $14) 35. fxg6 {[%emt 0:00:36]} Nxg6 {[%emt 0:02:55]} (35... hxg6 $2 {loses.} 36. Kf2 $19) 36. h5 {[%emt 0:00:47]} Nf4 {[%emt 0:00:10]} 37. h6 {[%emt 0:00:25]} Bf3 {[%emt 0:01:45]} ({Worse is} 37... Rxc2 38. Re7 $11) 38. Re7 $2 {[%emt 0:00:53] Weighted Error Value: White=0.27 (precise) /Black=0.09 (flawless)} (38. Kf2 Rxd1 39. Re7) 0-1